fUST/lending_fUST_20250707
["ID","MTS","AMOUNT","RATE_DAILY","PERIOD"]
[370100321,1751880645065,-460.0,0.00017675,2]
[370100322,1751880645074,-460.0,0.00017676,2]
[370100323,1751880645084,-460.0,0.00017676,2]
[370100324,1751880645094,-460.0,0.00017676,2]
[370100325,1751880645103,-460.0,0.00017676,2]
[370100326,1751880645113,-537.25,0.00017676,2]
[370100327,1751880645122,-550.19,0.00017676,2]
[370100328,1751880645132,-246.92,0.00017676,2]
[370100329,1751880645141,-272.09,0.00017676,2]
[370100330,1751880645151,-571.05,0.00017676,2]
[370100331,1751880645160,-160.92,0.00017677,2]
[370100332,1751880645170,-460.0,0.00017677,2]
[370100333,1751880645179,-460.0,0.00017677,2]
[370100334,1751880645189,-362.13,0.00017677,2]
[370100335,1751880645199,-460.0,0.00017677,2]
[370100336,1751880645208,-593.46435613,0.00017677,2]
[370100337,1751880645217,-460.0,0.00017677,2]
[370100338,1751880645226,-497.21,0.00017678,2]
[370100339,1751880645236,-460.0,0.00017678,2]
[370100340,1751880645246,-460.0,0.00017678,2]
[370100341,1751880645257,-299.71,0.00017678,2]
[370100342,1751880645267,-460.0,0.00017678,2]
[370100343,1751880645277,-460.0,0.00017678,2]
[370100344,1751880645286,-460.0,0.00017679,2]
[370100345,1751880645296,-460.0,0.00017679,2]
[370100346,1751880645305,-460.0,0.00017679,2]
[370100347,1751880645314,-460.0,0.00017679,2]
[370100348,1751880645324,-460.0,0.00017679,2]
[370100349,1751880645333,-151.0,0.00017932,2]
[370100350,1751880645343,-151.0,0.00017932,2]
[370100351,1751880645352,-151.0,0.00017932,2]
[370100352,1751880645362,-151.0,0.00017932,2]
[370100353,1751880645371,-151.0,0.00017932,2]
[370100354,1751880645380,-226.00119913,0.00017932,2]
[370100355,1751880645390,-500.0,0.00017932,2]
[370100356,1751880645400,-500.0,0.00017932,2]
[370100357,1751880645410,-207.4,0.00017932,2]
[370100358,1751880645420,-500.0,0.00017932,2]
[370100359,1751880645429,-1500.0,0.00017932,2]
[370100360,1751880645438,-1500.0,0.00017932,2]
[370100361,1751880645448,-151.0,0.00017932,2]
[370100362,1751880645458,-1500.0,0.00017932,2]
[370100363,1751880645468,-151.0,0.00017932,2]
[370100364,1751880645477,-151.0,0.00017932,2]
[370100365,1751880645486,-1500.0,0.00017932,2]
[370100366,1751880645496,-500.0,0.00017932,2]
[370100367,1751880645505,-1500.0,0.00017932,2]
[370100368,1751880645515,-151.0,0.00017932,2]
[370100369,1751880645524,-1500.0,0.00017932,2]
[370100370,1751880645534,-151.0,0.00017932,2]
[370100371,1751880645543,-1500.0,0.00017932,2]
[370100372,1751880645552,-1500.0,0.00017932,2]
[370100373,1751880645562,-151.0,0.00017932,2]
[370100374,1751880645573,-1500.0,0.00017932,2]
[370100375,1751880645583,-151.0,0.00017932,2]
[370100376,1751880645593,-500.0,0.00017932,2]
[370100377,1751880645602,-1500.0,0.00017932,2]
[370100378,1751880645611,-500.0,0.00017932,2]
[370100379,1751880645620,-151.0,0.00017932,2]
[370100380,1751880645629,-1500.0,0.00017932,2]
[370100381,1751880645638,-151.0,0.00017932,2]
[370100382,1751880645647,-500.0,0.00017932,2]
[370100383,1751880645658,-151.0,0.00017932,2]
[370100384,1751880645668,-500.0,0.00017932,2]
[370100385,1751880645678,-151.0,0.00017932,2]
[370100386,1751880645687,-500.0,0.00017932,2]
[370100387,1751880645696,-500.0,0.00017932,2]
[370100388,1751880645706,-151.0,0.00017932,2]
[370100389,1751880645715,-500.0,0.00017932,2]
[370100390,1751880645725,-151.0,0.00017932,2]
[370100391,1751880645734,-151.0,0.00017932,2]
[370100392,1751880645744,-151.0,0.00017932,2]
[370100393,1751880645754,-151.0,0.00017932,2]
[370100394,1751880645764,-151.0,0.00017932,2]
[370100395,1751880645774,-645.42,0.00017942,3]
[370100396,1751880645784,-322.72,0.00017942,3]
[370100397,1751880645794,-460.0,0.00017949,2]
[370100398,1751880645804,-2839.92,0.00017949,2]
[370100399,1751880645813,-460.0,0.00017949,2]
[370100400,1751880645823,-460.0,0.0001795,2]
[370100401,1751880645833,-460.0,0.0001795,2]
[370100402,1751880645842,-460.0,0.0001795,2]
[370100403,1751880645852,-460.0,0.0001795,2]
[370100404,1751880645861,-537.25,0.0001795,2]
[370100405,1751880645871,-571.05,0.0001795,2]
[370100406,1751880645881,-460.0,0.00017951,2]
[370100407,1751880645890,-460.0,0.00017951,2]
[370100408,1751880645901,-460.0,0.00017951,2]
[370100409,1751880645910,-460.0,0.00017951,2]
[370100410,1751880645920,-497.21,0.00017952,2]
[370100411,1751880645930,-460.0,0.00017952,2]
[370100412,1751880645939,-460.0,0.00017952,2]
[370100413,1751880645949,-460.0,0.00017952,2]
[370100414,1751880645959,-460.0,0.00017952,2]
[370100415,1751880645969,-460.0,0.00017953,2]
[370100416,1751880645979,-460.0,0.00017953,2]
[370100417,1751880645989,-292.35,0.00017953,2]
[370100418,1751880645999,-460.0,0.00017953,2]
[370100420,1751880646008,-475.70977243,0.00017968,2]
[370100421,1751880646019,-157.894737,0.00018001,2]
[370100422,1751880646028,-157.894737,0.00018088,2]
[370100423,1751880646038,-157.894737,0.00018175,2]
[370100424,1751880646048,-460.0,0.00018223,2]
[370100425,1751880646057,-2839.92,0.00018223,2]
[370100426,1751880646067,-460.0,0.00018223,2]
[370100427,1751880646077,-460.0,0.00018224,2]
[370100428,1751880646086,-460.0,0.00018224,2]
[370100429,1751880646096,-460.0,0.00018224,2]
[370100430,1751880646106,-460.0,0.00018224,2]
[370100431,1751880646115,-537.25,0.00018224,2]
[370100432,1751880646125,-571.05,0.00018224,2]
[370100433,1751880646134,-597.09,0.00018225,2]
[370100434,1751880646146,-588.22,0.00018225,2]
[370100435,1751880646155,-460.0,0.00018225,2]
[370100436,1751880646164,-460.0,0.00018225,2]
[370100437,1751880646173,-497.21,0.00018226,2]
[370100438,1751880646182,-457.05,0.00018226,2]
[370100439,1751880646192,-460.0,0.00018226,2]
[370100440,1751880646201,-460.0,0.00018226,2]
[370100441,1751880646210,-460.0,0.00018226,2]
[370100443,1751880646220,-460.0,0.00018227,2]
[370100445,1751880646229,-579.36,0.00018227,2]
[370100447,1751880646239,-460.0,0.00018227,2]
[370100448,1751880646251,-157.894737,0.00018262,2]
[370100449,1751880646261,-157.894737,0.00018349,2]
[370100450,1751880646271,-157.894737,0.00018435,2]
[370100451,1751880646280,-460.0,0.00018497,2]
[370100452,1751880646291,-2839.92,0.00018497,2]
[370100453,1751880646301,-460.0,0.00018497,2]
[370100454,1751880646310,-460.0,0.00018498,2]
[370100455,1751880646320,-460.0,0.00018498,2]
[370100456,1751880646330,-203.90564859,0.00018498,2]
[370100457,1751880646341,-460.0,0.00018498,2]
[370100458,1751880646350,-537.25,0.00018498,2]
[370100459,1751880646359,-571.05,0.00018498,2]
[370100460,1751880646368,-460.0,0.00018499,2]
[370100461,1751880646377,-460.0,0.00018499,2]
[370100462,1751880646387,-497.21,0.000185,2]
[370100463,1751880646396,-460.0,0.000185,2]
[370100464,1751880646406,-460.0,0.000185,2]
[370100465,1751880646416,-460.0,0.000185,2]
[370100466,1751880646425,-210.36550983,0.00018501,2]
[370100467,1751880646435,-460.0,0.00018501,2]
[370100468,1751880646446,-157.894737,0.00018522,2]
[370100469,1751880646458,-157.894737,0.00018609,2]
[370100470,1751880646469,-157.894737,0.00018696,2]
[370100471,1751880646481,-460.0,0.00018771,2]
[370100472,1751880646493,-2839.92,0.00018771,2]
[370100473,1751880646504,-460.0,0.00018771,2]
[370100474,1751880646516,-467.96,0.00018772,2]
[370100475,1751880646534,-460.0,0.00018772,2]
[370100476,1751880646545,-460.0,0.00018772,2]
[370100477,1751880646554,-537.25,0.00018772,2]
[370100478,1751880646564,-571.05,0.00018772,2]
[370100479,1751880646574,-460.0,0.00018773,2]
[370100480,1751880646587,-460.0,0.00018773,2]
[370100481,1751880646597,-497.21,0.00018774,2]
[370100482,1751880646608,-460.0,0.00018774,2]
[370100483,1751880646618,-460.0,0.00018774,2]
[370100484,1751880646629,-460.0,0.00018774,2]
[370100485,1751880646639,-460.0,0.00018775,2]
[370100486,1751880646651,-157.894737,0.00018783,2]
[370100487,1751880646661,-157.894737,0.0001887,2]
[370100488,1751880646672,-157.894737,0.00018957,2]
[370100489,1751880646683,-1184.43829464,0.00019,2]
[370100490,1751880646693,-157.894737,0.00019044,2]
[370100491,1751880646704,-460.0,0.00019045,2]
[370100492,1751880646715,-2839.92,0.00019045,2]
[370100493,1751880646726,-460.0,0.00019045,2]
[370100494,1751880646737,-460.0,0.00019046,2]
[370100495,1751880646749,-460.0,0.00019046,2]
[370100496,1751880646760,-537.25,0.00019046,2]
[370100497,1751880646771,-571.05,0.00019046,2]
[370100498,1751880646781,-460.0,0.00019047,2]
[370100499,1751880646792,-460.0,0.00019047,2]
[370100500,1751880646802,-497.21,0.00019048,2]
[370100501,1751880646812,-462.18,0.00019048,2]
[370100502,1751880646823,-460.0,0.00019048,2]
[370100503,1751880646834,-460.0,0.00019048,2]
[370100504,1751880646845,-460.0,0.00019049,2]
[370100505,1751880646855,-157.894737,0.00019131,2]
[370100506,1751880646865,-359.107447,0.00019178,2]
[370100507,1751880646877,-666.0,0.00019178,2]
[370100508,1751880646888,-151.0,0.0001918,2]
[370100509,1751880646899,-500.0,0.0001918,2]
[370100510,1751880646911,-1162.79290855,0.00019181,2]
[370100511,1751880646921,-306.0,0.000192,2]
[370100512,1751880646932,-186.53348416,0.00019207,2]
[370100513,1751880646942,-500.0,0.00019207,2]
[370100514,1751880646953,-157.894737,0.00019218,2]
[370100515,1751880646962,-500.0,0.00019235,2]
[370100516,1751880646972,-232.0,0.00019262,2]
[370100517,1751880646982,-215.0738,0.00019301,2]
[370100518,1751880646992,-157.894737,0.00019305,2]
[370100519,1751880647003,-460.0,0.00019319,2]
[370100520,1751880647013,-2839.92,0.00019319,2]
[370100521,1751880647024,-460.0,0.00019319,2]
[370100522,1751880647035,-586.86,0.0001932,2]
[370100523,1751880647047,-460.0,0.0001932,2]
[370100524,1751880647057,-537.25,0.0001932,2]
[370100525,1751880647068,-571.05,0.0001932,2]
[370100526,1751880647080,-460.0,0.00019321,2]
[370100527,1751880647091,-460.0,0.00019321,2]
[370100528,1751880647102,-497.21,0.00019322,2]
[370100529,1751880647113,-186.7,0.00019322,2]
[370100530,1751880647124,-460.0,0.00019322,2]
[370100531,1751880647136,-460.0,0.00019323,2]
[370100532,1751880647147,-157.894737,0.00019392,2]
[370100533,1751880647158,-157.894737,0.00019479,2]
[370100534,1751880647168,-837.79946008,0.0001951,2]
[370100535,1751880647181,-848.27993403,0.0001951,2]
[370100536,1751880647192,-160.0,0.0001951,2]
[370100537,1751880647201,-160.0,0.0001951,2]
[370100538,1751880647211,-230.48668418,0.0001951,2]
[370100539,1751880647221,-160.0,0.0001951,2]
[370100540,1751880647230,-214.06929976,0.0001951,2]
[370100541,1751880647240,-160.0,0.0001951,2]
[370100542,1751880647250,-160.0,0.0001951,2]
[370100543,1751880647260,-215.21338352,0.0001951,2]
[370100544,1751880647271,-160.0,0.0001951,2]
[370100545,1751880647282,-12584.46609586,0.0001951,2]
[370100546,1751880647294,-160.0,0.0001951,2]
[370100547,1751880647305,-157.894737,0.00019566,2]
[370100548,1751880647317,-460.0,0.00019593,2]
[370100549,1751880647328,-2839.92,0.00019593,2]
[370100550,1751880647340,-460.0,0.00019593,2]
[370100551,1751880647350,-460.0,0.00019594,2]
[370100552,1751880647360,-537.25,0.00019594,2]
[370100553,1751880647371,-571.05,0.00019594,2]
[370100554,1751880647381,-460.0,0.00019595,2]
[370100555,1751880647392,-460.0,0.00019595,2]
[370100556,1751880647402,-497.21,0.00019596,2]
[370100557,1751880647413,-460.0,0.00019596,2]
[370100558,1751880647424,-460.0,0.00019597,2]
[370100559,1751880647435,-460.0,0.00019867,2]
[370100560,1751880647446,-2839.92,0.00019867,2]
[370100561,1751880647457,-460.0,0.00019867,2]
[370100562,1751880647467,-460.0,0.00019868,2]
[370100563,1751880647477,-537.25,0.00019868,2]
[370100564,1751880647487,-571.05,0.00019868,2]
[370100565,1751880647497,-460.0,0.00019869,2]
[370100566,1751880647507,-460.0,0.00019869,2]
[370100567,1751880647517,-497.21,0.0001987,2]
[370100568,1751880647527,-460.0,0.0001987,2]
[370100569,1751880647538,-499.98,0.00019871,2]
[370100570,1751880647548,-460.0,0.00019871,2]
[370100571,1751880647558,-177.050906,0.00019944,2]
[370100572,1751880647569,-300.0,0.0002,2]
[370100573,1751880647580,-460.0,0.00020141,2]
[370100574,1751880647590,-2839.92,0.00020141,2]
[370100575,1751880647600,-460.0,0.00020141,2]
[370100576,1751880647611,-460.0,0.00020142,2]
[370100577,1751880647622,-537.25,0.00020142,2]
[370100578,1751880647632,-571.05,0.00020142,2]
[370100579,1751880647644,-460.0,0.00020143,2]
[370100580,1751880647654,-460.0,0.00020143,2]
[370100581,1751880647664,-497.21,0.00020144,2]
[370100582,1751880647675,-460.0,0.00020144,2]
[370100583,1751880647686,-499.98,0.00020145,2]
[370100584,1751880647696,-460.0,0.00020145,2]
[370100585,1751880647707,-460.0,0.00020415,2]
[370100586,1751880647717,-2839.92,0.00020415,2]
[370100587,1751880647726,-460.0,0.00020415,2]
[370100588,1751880647736,-460.0,0.00020416,2]
[370100589,1751880647747,-537.25,0.00020416,2]
[370100590,1751880647757,-460.0,0.00020416,2]
[370100591,1751880647767,-460.0,0.00020416,2]
[370100592,1751880647778,-571.05,0.00020416,2]
[370100593,1751880647788,-497.21,0.00020418,2]
[370100594,1751880647798,-460.0,0.00020418,2]
[370100595,1751880647808,-499.98,0.00020419,2]
[370100596,1751880647819,-460.0,0.00020419,2]
[370100597,1751880647829,-521.467,0.00020634,2]
[370100598,1751880647840,-500.0,0.00020664,2]
[370100599,1751880647851,-500.0,0.00020664,2]
[370100600,1751880647861,-500.0,0.00020664,2]
[370100601,1751880647871,-500.0,0.00020664,2]
[370100602,1751880647883,-500.0,0.00020664,2]
[370100603,1751880647895,-500.0,0.00020664,2]
[370100604,1751880647906,-500.0,0.00020664,2]
[370100605,1751880647916,-223.0315306,0.0002067,2]
[370100606,1751880647926,-460.0,0.00020689,2]
[370100607,1751880647937,-2839.92,0.00020689,2]
[370100608,1751880647948,-460.0,0.00020689,2]
[370100609,1751880647959,-460.0,0.0002069,2]
[370100610,1751880647970,-537.25,0.0002069,2]
[370100611,1751880647979,-460.0,0.0002069,2]
[370100612,1751880647990,-460.0,0.0002069,2]
[370100613,1751880648001,-571.05,0.0002069,2]
[370100614,1751880648011,-497.21,0.00020692,2]
[370100615,1751880648022,-460.0,0.00020692,2]
[370100616,1751880648033,-499.98,0.00020693,2]
[370100617,1751880648043,-460.0,0.00020693,2]
[370100618,1751880648053,-1631.33,0.000207,2]
[370100619,1751880648064,-202.58,0.00020963,2]
[370100620,1751880648074,-2839.92,0.00020963,2]
[370100621,1751880648085,-460.0,0.00020963,2]
[370100622,1751880648095,-460.0,0.00020964,2]
[370100623,1751880648106,-537.25,0.00020964,2]
[370100624,1751880648116,-460.0,0.00020964,2]
[370100625,1751880648126,-432.51573702,0.00020964,2]
[370100626,1751880648136,-571.05,0.00020964,2]
[370100627,1751880648148,-497.21,0.00020966,2]
[370100628,1751880648158,-460.0,0.00020966,2]
[370100629,1751880648169,-499.98,0.00020967,2]
[370100630,1751880648179,-460.0,0.00020967,2]
[370100631,1751880648190,-1162.79290855,0.0002106,2]
[370100632,1751880648200,-1000.0,0.00021212,2]
[370100633,1751880648210,-1000.0,0.00021212,2]
[370100634,1751880648220,-1000.0,0.00021212,2]
[370100635,1751880648231,-1000.0,0.00021212,2]
[370100636,1751880648241,-1000.0,0.00021212,2]
[370100637,1751880648256,-2839.92,0.00021237,2]
[370100638,1751880648266,-460.0,0.00021237,2]
[370100639,1751880648277,-460.0,0.00021238,2]
[370100640,1751880648287,-537.25,0.00021238,2]
[370100641,1751880648299,-460.0,0.00021238,2]
[370100642,1751880648309,-571.05,0.00021238,2]
[370100643,1751880648319,-497.21,0.0002124,2]
[370100644,1751880648329,-460.0,0.0002124,2]
[370100645,1751880648340,-499.98,0.00021241,2]
[370100646,1751880648350,-255.14,0.00021241,2]
[370100647,1751880648360,-544.25745257,0.00021498,2]
[370100648,1751880648370,-2839.92,0.00021511,2]
[370100649,1751880648380,-536.54,0.00021511,2]
[370100650,1751880648391,-460.0,0.00021512,2]
[370100651,1751880648402,-537.25,0.00021512,2]
[370100652,1751880648412,-197.84000001,0.00021512,2]
[370100653,1751880648423,-571.05,0.00021512,2]
[370100654,1751880648434,-497.21,0.00021514,2]
[370100655,1751880648445,-460.0,0.00021514,2]
[370100656,1751880648455,-499.98,0.00021515,2]
[370100657,1751880648465,-500.0,0.00021667,2]
[370100658,1751880648476,-1500.0,0.0002176,2]
[370100659,1751880648486,-2839.92,0.00021785,2]
[370100660,1751880648497,-460.0,0.00021786,2]
[370100661,1751880648506,-537.25,0.00021786,2]
[370100662,1751880648516,-497.21,0.00021788,2]
[370100663,1751880648526,-460.0,0.00021788,2]
[370100664,1751880648536,-499.98,0.00021789,2]
[370100665,1751880648547,-500.0,0.00021918,2]
[370100666,1751880648558,-500.0,0.00021918,2]
[370100667,1751880648567,-500.0,0.00021918,2]
[370100668,1751880648577,-500.0,0.00021918,2]
[370100669,1751880648588,-500.0,0.00021918,2]
[370100670,1751880648598,-500.0,0.00021918,2]
[370100671,1751880648612,-500.0,0.00021918,2]
[370100672,1751880648622,-500.0,0.00021918,2]
[370100673,1751880648632,-500.0,0.00021918,2]
[370100674,1751880648643,-500.0,0.00021918,2]
[370100675,1751880648654,-320.08403519,0.00021918,2]
[370100676,1751880648664,-35308.11,0.00022,7]
[370100677,1751880648675,-78880.64,0.00022,2]
[370100678,1751880648685,-2184.33,0.00022,7]
[370100679,1751880648695,-12584.46609586,0.00022,7]
[370100680,1751880648705,-848.27993403,0.00022,7]
[370100681,1751880648716,-214.06929976,0.00022,7]
[370100682,1751880648726,-160.0,0.00022,7]
[370100683,1751880648736,-160.0,0.00022,7]
[370100684,1751880648746,-231.28369723,0.00022039,2]
[370100685,1751880648755,-2839.92,0.00022059,2]
[370100686,1751880648766,-580.35,0.0002206,2]
[370100687,1751880648776,-537.25,0.0002206,2]
[370100688,1751880648786,-497.21,0.00022062,2]
[370100689,1751880648796,-460.0,0.00022062,2]
[370100690,1751880648806,-499.98,0.00022063,2]
[370100691,1751880649059,-500.0,0.00022308,2]
[370100692,1751880649081,-2839.92,0.00022333,2]
[370100693,1751880649092,-537.25,0.00022334,2]
[370100694,1751880649102,-497.21,0.00022336,2]
[370100695,1751880649111,-350.47,0.00022336,2]
[370100696,1751880649121,-499.98,0.00022337,2]
[370100697,1751880649130,-1853.0,0.00022423,4]
[370100698,1751880649140,-1853.0,0.00022523,4]
[370100699,1751880649149,-1631.33,0.000226,7]
[370100700,1751880649159,-359.107447,0.00022603,2]
[370100701,1751880649169,-2839.92,0.00022607,2]
[370100702,1751880649178,-537.25,0.00022608,2]
[370100703,1751880649187,-497.21,0.0002261,2]
[370100704,1751880649196,-499.98,0.00022611,2]
[370100705,1751880649206,-1853.0,0.00022623,6]
[370100706,1751880649215,-1853.0,0.00022723,2]
[370100707,1751880649225,-3620.25660361,0.000228,2]
[370100708,1751880649234,-434.82246799,0.00022802,2]
[370100709,1751880649244,-1853.0,0.00022823,6]
[370100710,1751880649255,-2840.05020355,0.00022881,2]
[370100711,1751880649264,-537.26154364,0.00022882,2]
[370100712,1751880649273,-497.42,0.00022884,2]
[370100713,1751880649282,-500.01,0.00022885,2]
[370100714,1751880649292,-1853.0,0.00022923,5]
[370100715,1751880649301,-1162.79290855,0.00022938,2]
[370100716,1751880649310,-252.12037251,0.00023,2]
[370100717,1751880649319,-160.0,0.00023,2]
[370100718,1751880649328,-1853.0,0.00023023,2]
[370100719,1751880649338,-1853.0,0.00023123,2]
[370100720,1751880649347,-1853.0,0.00023223,5]
[370100721,1751880649358,-228.0,0.00023241,2]
[370100722,1751880649367,-168.0,0.00023245,2]
[370100723,1751880649377,-1853.0,0.00023323,6]
[370100724,1751880649387,-239.84119403,0.00023408,2]
[370100725,1751880649397,-228.0,0.00023415,2]
[370100726,1751880649407,-1853.0,0.00023423,3]
[370100727,1751880649417,-35308.11,0.000235,7]
[370100728,1751880649427,-78880.64,0.000235,2]
[370100729,1751880649436,-2184.33,0.000235,7]
[370100730,1751880649445,-1853.0,0.00023523,6]
[370100731,1751880649455,-228.0,0.00023547,2]
[370100732,1751880649464,-366.6942869,0.00023562,2]
[370100733,1751880649473,-366.6942869,0.00023562,2]
[370100734,1751880649483,-1853.0,0.00023623,5]
[370100735,1751880649492,-168.0,0.00023699,2]
[370100736,1751880649501,-967.0,0.00023706,2]
[370100737,1751880649510,-168.0,0.00023706,2]
[370100738,1751880649520,-1853.0,0.00023723,2]
[370100739,1751880649529,-184.05144801,0.00023781,2]
[370100740,1751880649538,-1853.0,0.00023823,2]
[370100741,1751880649547,-355.0413337,0.00023836,2]
[370100742,1751880649557,-159.4922776,0.00023836,2]
[370100743,1751880649566,-159.4922776,0.00023836,2]
[370100744,1751880649575,-159.4922776,0.00023836,2]
[370100745,1751880649585,-159.4922776,0.00023836,2]
[370100746,1751880649594,-159.0616395,0.00023836,2]
[370100747,1751880649603,-549.20648262,0.00023859,2]
[370100748,1751880649612,-168.0,0.00023886,2]
[370100749,1751880649622,-184.05144801,0.0002389,2]
[370100750,1751880649632,-1853.0,0.00023923,2]
[370100751,1751880649642,-4766.66,0.0002398,10]
[370100752,1751880649651,-1000.0,0.00023987,5]
[370100753,1751880649661,-151.0,0.00023994,7]
[370100754,1751880649670,-13977.0,0.00024,5]
[370100755,1751880649681,-184.05144801,0.00024,2]
[370100756,1751880649691,-1631.33,0.00024,7]
[370100757,1751880649701,-160.0,0.00024,7]
[370100758,1751880649710,-160.0,0.00024,10]
[370100759,1751880649720,-837.79946008,0.00024,7]
[370100760,1751880649729,-837.79946008,0.00024,10]
[370100761,1751880649739,-12584.46609586,0.00024,10]
[370100762,1751880649748,-160.0,0.00024,7]
[370100763,1751880649758,-160.0,0.00024,10]
[370100764,1751880649767,-230.48668418,0.00024,7]
[370100765,1751880649776,-230.48668418,0.00024,10]
[370100766,1751880649786,-160.0,0.00024,7]
[370100767,1751880649795,-160.0,0.00024,7]
[370100768,1751880649805,-848.27993403,0.00024,10]
[370100769,1751880649814,-214.06929976,0.00024,10]
[370100770,1751880649823,-215.21338352,0.00024,7]
[370100771,1751880649832,-215.21338352,0.00024,10]
[370100772,1751880649842,-160.0,0.00024,7]
[370100773,1751880649851,-160.0,0.00024,10]
[370100774,1751880649860,-524.98484073,0.00024,10]
[370100775,1751880649870,-160.0,0.00024,7]
[370100776,1751880649879,-160.0,0.00024,10]
[370100777,1751880649889,-160.0,0.00024,7]
[370100778,1751880649898,-160.0,0.00024,10]
[370100779,1751880649908,-1853.0,0.00024023,5]
[370100780,1751880649917,-167.61624181,0.00024082,2]
[370100781,1751880649927,-167.6162418,0.00024082,2]
[370100782,1751880649936,-184.05144801,0.0002411,2]
[370100783,1751880649945,-1853.0,0.00024123,4]
[370100784,1751880649955,-228.0,0.00024152,2]
[370100785,1751880649964,-228.0,0.000242,2]
[370100786,1751880649973,-151.0,0.000242,10]
[370100787,1751880649983,-228.0,0.00024201,2]
[370100788,1751880649992,-1853.0,0.00024223,5]
[370100789,1751880650002,-228.0,0.00024237,2]
[370100790,1751880650011,-366.6942869,0.00024247,2]
[370100791,1751880650020,-366.6942869,0.00024247,2]
[370100792,1751880650030,-366.6942869,0.00024247,2]
[370100793,1751880650039,-366.6942869,0.00024247,2]
[370100794,1751880650048,-366.6942869,0.00024247,2]
[370100795,1751880650058,-732.0365826,0.00024247,2]
[370100796,1751880650067,-184.05144801,0.00024247,2]
[370100797,1751880650076,-1853.0,0.00024323,5]
[370100798,1751880650085,-168.0,0.00024347,2]
[370100799,1751880650094,-184.05144801,0.00024356,2]
[370100800,1751880650104,-151.0,0.0002437,7]
[370100801,1751880650114,-576.0368563,0.00024384,2]
[370100802,1751880650123,-576.0368563,0.00024384,2]
[370100803,1751880650132,-576.0368563,0.00024384,2]
[370100804,1751880650142,-576.0368563,0.00024384,2]
[370100805,1751880650151,-3967.07919496,0.0002439,2]
[370100806,1751880650160,-167.61624181,0.00024411,2]
[370100807,1751880650170,-167.6162418,0.00024411,2]
[370100808,1751880650180,-1853.0,0.00024423,6]
[370100809,1751880650189,-168.0,0.00024458,2]
[370100810,1751880650198,-184.05144801,0.00024466,2]
[370100811,1751880650208,-600.0,0.00024483,2]
[370100812,1751880650218,-9781.80335578,0.000245,2]
[370100813,1751880650227,-200.0,0.000245,2]
[370100814,1751880650237,-366.6942869,0.00024521,2]
[370100815,1751880650246,-554.2569385,0.00024521,2]
[370100816,1751880650259,-249.149196,0.00024521,2]
[370100817,1751880650268,-1853.0,0.00024523,7]
[370100818,1751880650278,-646.0,0.00024564,2]
[370100819,1751880650287,-2153.0,0.00024564,2]
[370100820,1751880650298,-406.0,0.00024564,2]
[370100821,1751880650307,-429.128,0.00024564,2]
[370100822,1751880650317,-512.7884035,0.00024568,2]
[370100823,1751880650326,-184.05144801,0.00024575,2]
[370100824,1751880650335,-1853.0,0.00024623,5]